bitfinex/quotes_BTCUSD_20250604
["timestamp","ask_amount","ask_price","bid_price","bid_amount"]
[1749061168776,0.034,105090.0,105080.0,0.790079]
[1749061171410,0.034,105090.0,105080.0,1.130079]
[1749061171849,0.034,105090.0,105080.0,0.04345527]
[1749061172064,0.034,105090.0,105080.0,0.79245785]
[1749061172305,0.034,105090.0,105080.0,0.790079]
[1749061173443,0.3501,105120.0,105080.0,0.74762373]
[1749061173666,0.0958543,105110.0,105100.0,0.0321]
[1749061173887,0.0958543,105110.0,105100.0,0.22734]
[1749061174330,0.83958611,105130.0,105100.0,0.95776373]
[1749061174546,0.0958543,105120.0,105110.0,0.76282373]
[1749061174770,0.07964087,105130.0,105110.0,0.93376373]
[1749061174771,0.10081632,105130.0,105110.0,0.93376373]
[1749061175205,0.1097161,105130.0,105110.0,0.93376373]
[1749061175646,0.10081632,105130.0,105110.0,0.93376373]
[1749061175865,0.11171551,105130.0,105110.0,0.9339079]
[1749061176085,0.10281632,105130.0,105110.0,0.9339079]
[1749061176508,0.10581632,105130.0,105110.0,0.9339079]
[1749061176958,0.11891632,105130.0,105110.0,0.9339079]
[1749061177175,0.12191632,105130.0,105110.0,0.94739598]
[1749061177389,0.12191632,105130.0,105110.0,0.20077225]
[1749061177593,0.13081459,105130.0,105110.0,0.20077225]
[1749061177814,0.12191632,105130.0,105110.0,0.20077225]
[1749061178699,0.13081454,105130.0,105110.0,0.20077225]
[1749061178906,0.12191632,105130.0,105110.0,0.20077225]
[1749061179107,0.46191632,105130.0,105120.0,0.20532]
[1749061179316,0.47081454,105130.0,105120.0,0.20532]
[1749061179554,0.46191632,105130.0,105120.0,0.20532]
[1749061180014,0.45891632,105130.0,105120.0,0.20532]
[1749061180235,0.46291632,105130.0,105120.0,0.20532]
[1749061180444,0.47181442,105130.0,105120.0,0.20532]
[1749061180646,0.42091632,105130.0,105120.0,0.20532]
[1749061181109,0.42491632,105130.0,105120.0,0.20532]
[1749061181328,1.17154005,105130.0,105120.0,0.20532]
[1749061181553,1.21706668,105130.0,105120.0,0.24548]
[1749061181773,1.21706668,105130.0,105120.0,0.40052]
[1749061182202,1.1968411,105130.0,105120.0,0.40052]
[1749061182417,1.18794005,105130.0,105120.0,0.40052]
[1749061182644,1.18794005,105130.0,105120.0,0.20532]
[1749061182870,1.18794005,105130.0,105120.0,0.24548]
[1749061182871,1.2024809,105130.0,105120.0,0.24548]
[1749061183103,1.2024809,105130.0,105120.0,0.40052]
[1749061184410,1.2310179,105130.0,105120.0,0.40052]
[1749061185092,1.37352912,105130.0,105120.0,0.20532]
[1749061185332,2.07764163,105130.0,105120.0,0.24548]
[1749061185545,2.07764163,105130.0,105110.0,0.20542417]
[1749061185546,0.0814,105120.0,105110.0,0.20542417]
[1749061185782,1.67050176,105120.0,105110.0,0.24558417]
[1749061186247,0.92387803,105120.0,105110.0,0.24558417]
[1749061186870,0.92687803,105120.0,105110.0,0.40062417]
[1749061187294,0.92887803,105120.0,105110.0,0.40062417]
[1749061187734,0.88887803,105120.0,105110.0,0.40062417]
[1749061189142,0.13149515,105120.0,105110.0,0.40062417]
[1749061189576,0.1008543,105120.0,105110.0,0.41662417]
[1749061190418,0.1008543,105120.0,105110.0,0.43272417]
[1749061190567,0.1008543,105120.0,105110.0,0.41662417]
[1749061190764,0.1008543,105120.0,105110.0,0.43272417]
[1749061194855,0.005,105120.0,105110.0,0.43272417]
[1749061195099,0.01389898,105120.0,105110.0,0.43272417]
[1749061195307,0.005,105120.0,105110.0,0.43272417]
[1749061195944,0.01389846,105120.0,105110.0,0.43272417]
[1749061196151,0.005,105120.0,105110.0,0.43272417]
[1749061197006,0.505,105120.0,105110.0,0.43272417]
[1749061198658,0.51389862,105120.0,105110.0,0.43272417]
[1749061198900,0.505,105120.0,105110.0,0.43272417]
[1749061199103,0.51389862,105120.0,105110.0,0.43272417]
[1749061199934,0.505,105120.0,105110.0,0.43272417]
[1749061200700,0.51389862,105120.0,105110.0,0.43272417]
[1749061200960,0.505,105120.0,105110.0,0.43272417]
[1749061201177,0.51389862,105120.0,105110.0,0.43272417]
[1749061201441,0.505,105120.0,105110.0,0.43272417]
[1749061201941,0.47389751,105120.0,105110.0,0.43272417]
[1749061202175,0.47389735,105120.0,105110.0,0.43272417]
[1749061202417,0.4738973,105120.0,105110.0,0.43272417]
[1749061202634,0.465,105120.0,105110.0,0.43272417]
[1749061203064,0.465,105120.0,105110.0,0.43268417]
[1749061203511,0.47389595,105120.0,105110.0,0.43268417]
[1749061203723,0.465,105120.0,105110.0,0.43268417]
[1749061203959,0.465,105120.0,105110.0,0.41658417]
[1749061204581,0.47389422,105120.0,105110.0,0.41658417]
[1749061204821,0.4738942,105120.0,105110.0,0.41658417]
[1749061205046,0.465,105120.0,105110.0,0.41658417]
[1749061205541,0.47389409,105120.0,105110.0,0.41658417]
[1749061205770,0.465,105120.0,105110.0,0.41658417]
[1749061206205,0.47389433,105120.0,105110.0,0.41658417]
[1749061206428,0.47389409,105120.0,105110.0,0.41658417]
[1749061206634,0.465,105120.0,105110.0,0.43168417]
[1749061206837,0.47389409,105120.0,105110.0,0.43168417]
[1749061207264,0.465,105120.0,105110.0,0.43168417]
[1749061207442,0.47389406,105120.0,105110.0,0.43168417]
[1749061207649,0.465,105120.0,105110.0,0.43168417]
[1749061208945,0.425,105120.0,105110.0,0.43168417]
[1749061209375,0.43389406,105120.0,105110.0,0.43168417]
[1749061209583,0.425,105120.0,105110.0,0.43168417]
[1749061210009,0.43389407,105120.0,105110.0,0.43168417]
[1749061210623,0.425,105120.0,105110.0,0.43168417]
[1749061210868,0.44278812,105120.0,105110.0,0.43168417]
[1749061211066,0.43389406,105120.0,105110.0,0.43168417]
[1749061212759,0.44278812,105120.0,105110.0,0.43168417]
[1749061212974,0.4427877,105120.0,105110.0,0.43168417]
[1749061213187,0.43389406,105120.0,105110.0,0.43168417]
[1749061213827,0.44278616,105120.0,105110.0,0.43168417]
[1749061214049,0.43389406,105120.0,105110.0,0.43168417]
[1749061216011,0.39389406,105120.0,105110.0,0.43168417]
[1749061216652,0.40278557,105120.0,105110.0,0.43168417]
[1749061216868,0.39389406,105120.0,105110.0,0.43168417]
[1749061217093,0.40278557,105120.0,105110.0,0.43168417]
[1749061217332,0.39389406,105120.0,105110.0,0.43168417]
[1749061217996,0.40278557,105120.0,105110.0,0.43168417]
[1749061218207,0.39389406,105120.0,105110.0,0.43168417]
[1749061218728,0.40278557,105120.0,105110.0,0.43168417]
[1749061219699,0.39389406,105120.0,105110.0,0.43168417]
[1749061219932,0.40278557,105120.0,105110.0,0.43168417]
[1749061220158,0.39389406,105120.0,105110.0,0.43168417]
[1749061220404,0.39389406,105120.0,105110.0,1.1783079]
[1749061220861,0.39389406,105120.0,105110.0,1.18970601]
[1749061222961,0.35389406,105120.0,105110.0,1.18970601]
[1749061223204,0.35389406,105120.0,105110.0,1.03470601]
[1749061223454,0.35389406,105120.0,105110.0,0.87893658]
[1749061223670,0.35389406,105120.0,105110.0,1.62933663]
[1749061225040,0.35389406,105120.0,105110.0,1.63033663]
[1749061225470,0.35389406,105120.0,105110.0,1.63133663]
[1749061225680,0.35389406,105120.0,105110.0,1.63033663]
[1749061226110,0.35389406,105120.0,105110.0,1.63133663]
[1749061226543,0.35389406,105120.0,105110.0,1.66191715]
[1749061226990,0.35389406,105120.0,105110.0,2.39336645]
[1749061227211,0.35389406,105120.0,105110.0,2.73336645]
[1749061227445,0.35389406,105120.0,105110.0,2.8479073]
[1749061227656,0.2907881,105120.0,105110.0,2.8489073]
[1749061227884,0.0317,105180.0,105150.0,0.0715]
[1749061228131,0.0317,105180.0,105160.0,0.94262373]
[1749061228361,0.0317,105180.0,105170.0,0.20528]
[1749061228799,0.3717,105180.0,105170.0,0.20528]
[1749061229237,0.3737,105180.0,105170.0,0.20528]
[1749061229462,0.37417908,105180.0,105170.0,0.20528]
[1749061229896,0.35767908,105180.0,105170.0,0.20528]
[1749061230114,0.35967908,105180.0,105170.0,0.20528]
[1749061230333,0.36267908,105180.0,105170.0,0.20528]
[1749061230791,1.12590281,105180.0,105170.0,0.20528]
[1749061231010,1.12590281,105180.0,105170.0,0.4012]
[1749061232120,1.98292169,105180.0,105170.0,0.2454]
[1749061232348,1.98292169,105180.0,105170.0,0.20528]
[1749061232570,2.03292169,105180.0,105170.0,0.40116]
[1749061232786,2.04292169,105180.0,105170.0,0.40116]
[1749061233254,1.99292169,105180.0,105170.0,0.40116]
[1749061233452,1.99292169,105180.0,105170.0,0.40124]
[1749061233879,1.98992169,105180.0,105170.0,0.40124]
[1749061234131,1.99492169,105180.0,105170.0,0.40124]
[1749061234379,1.98492169,105180.0,105170.0,0.40124]
[1749061234586,2.00266085,105180.0,105170.0,0.40124]
[1749061234798,2.00266085,105180.0,105170.0,0.20528]
[1749061235009,1.99092169,105180.0,105170.0,0.4012]
[1749061236241,1.99092169,105180.0,105170.0,0.20528]
[1749061236445,1.99092169,105180.0,105170.0,0.40116]
[1749061237103,0.51541372,105180.0,105170.0,0.40116]
[1749061237324,1.99092169,105180.0,105170.0,0.40116]
[1749061238822,2.00866136,105180.0,105170.0,0.40116]
[1749061239474,1.99092169,105180.0,105170.0,0.40116]
[1749061239903,1.99979152,105180.0,105170.0,0.40116]
[1749061240111,1.99092169,105180.0,105170.0,0.40116]
[1749061241393,1.99979153,105180.0,105170.0,0.40116]
[1749061241610,2.01753121,105180.0,105170.0,0.40116]
[1749061241751,1.99092169,105180.0,105170.0,0.40116]
[1749061243172,1.99979154,105180.0,105170.0,0.40116]
[1749061243349,1.99092169,105180.0,105170.0,0.40116]
[1749061243605,1.99979151,105180.0,105170.0,0.40116]
[1749061243818,1.99092169,105180.0,105170.0,0.40116]
[1749061244258,1.99092169,105180.0,105170.0,0.2454]
[1749061244472,1.99092169,105180.0,105140.0,0.07594096]
[1749061244473,2.78814542,105180.0,105140.0,0.07594096]
[1749061244704,1.49324746,105150.0,105140.0,0.07594096]
[1749061244920,0.84247803,105150.0,105140.0,0.11642096]
[1749061245128,0.86754727,105150.0,105140.0,0.27206096]
[1749061245342,0.8764165,105150.0,105140.0,0.27206096]
[1749061245550,0.86754704,105150.0,105140.0,0.27206096]
[1749061245799,0.88528506,105150.0,105140.0,0.27206096]
[1749061246001,0.85867803,105150.0,105140.0,0.27206096]
[1749061246210,0.87641605,105150.0,105140.0,0.27202096]
[1749061246630,0.87641602,105150.0,105140.0,0.27202096]
[1749061246845,0.85867803,105150.0,105140.0,0.27202096]
[1749061247047,0.87641604,105150.0,105140.0,0.27202096]
[1749061247265,0.85867803,105150.0,105140.0,0.27202096]
[1749061248107,0.85867803,105150.0,105140.0,0.27194096]
[1749061248311,0.85867803,105150.0,105140.0,0.11642096]
[1749061248542,0.85867803,105150.0,105140.0,0.27194096]
[1749061249159,0.86754694,105150.0,105140.0,0.27194096]
[1749061249400,0.85867803,105150.0,105140.0,0.27194096]
[1749061249858,0.84247803,105150.0,105140.0,0.27194096]
[1749061250071,0.84247803,105150.0,105140.0,0.07594096]
[1749061250282,0.84247803,105150.0,105140.0,0.27190096]
[1749061250487,0.851347,105150.0,105140.0,0.07594096]
[1749061250697,0.84247803,105150.0,105140.0,0.27190096]
[1749061250921,0.851347,105150.0,105140.0,0.27190096]
[1749061251128,0.80247803,105150.0,105140.0,0.27186096]
[1749061251747,0.811347,105150.0,105140.0,0.27186096]
[1749061251923,0.80247803,105150.0,105140.0,0.27186096]
[1749061253008,0.82357983,105150.0,105140.0,0.27186096]
[1749061253256,0.81469544,105150.0,105140.0,0.27186096]
[1749061253925,0.82357984,105150.0,105140.0,0.27186096]
[1749061254180,0.82357984,105150.0,105140.0,0.47710096]
[1749061254595,0.81469544,105150.0,105140.0,0.47702096]
[1749061254839,1.16358924,105150.0,105140.0,0.28118096]
[1749061255053,1.20083629,105150.0,105140.0,0.40108]
[1749061255263,1.24972991,105150.0,105140.0,0.40108]
[1749061255466,1.22523629,105150.0,105140.0,0.40108]
[1749061255674,1.20591253,105150.0,105140.0,0.40108]
[1749061255885,1.18247803,105150.0,105140.0,0.40108]
[1749061256135,1.08662373,105150.0,105140.0,0.43348]
[1749061256344,1.09551759,105150.0,105140.0,0.43348]
[1749061256553,1.09551759,105150.0,105140.0,0.40108]
[1749061256554,1.09551763,105150.0,105140.0,0.40108]
[1749061256754,1.09551763,105150.0,105140.0,0.401]
[1749061256755,1.18247803,105150.0,105140.0,0.401]
[1749061257529,1.19137185,105150.0,105140.0,0.401]
[1749061257728,1.18247803,105150.0,105140.0,0.401]
[1749061258184,0.85137185,105150.0,105140.0,0.401]
[1749061258385,0.84247803,105150.0,105140.0,0.401]
[1749061260249,0.85137297,105150.0,105140.0,0.401]
[1749061260480,0.84247803,105150.0,105140.0,0.401]
[1749061260905,0.85137595,105150.0,105140.0,0.401]
[1749061261116,0.84247803,105150.0,105140.0,0.401]
[1749061261321,0.85137597,105150.0,105140.0,0.401]
[1749061261526,0.84247803,105150.0,105140.0,0.401]
[1749061261948,0.85137598,105150.0,105140.0,0.401]
[1749061262173,0.34,105160.0,105140.0,0.4338]
[1749061262361,1.19137643,105160.0,105150.0,0.0328]
[1749061262609,1.08662373,105160.0,105150.0,0.0328]
[1749061262824,0.00889848,105160.0,105150.0,0.0328]
[1749061263040,0.01204849,105170.0,105160.0,0.0328]
[1749061263255,1.09867222,105170.0,105160.0,0.18796]
[1749061263466,1.08662373,105170.0,105160.0,0.18796]
[1749061264107,1.08962373,105170.0,105160.0,0.18796]
[1749061264716,1.09852403,105170.0,105160.0,0.18796]
[1749061264955,1.10152403,105170.0,105160.0,0.18796]
[1749061265172,1.09262373,105170.0,105160.0,0.18796]
[1749061265387,1.10152403,105170.0,105160.0,0.18796]
[1749061265604,1.09262373,105170.0,105160.0,0.18796]
[1749061265819,0.346,105170.0,105160.0,0.18796]
[1749061266267,1.09262373,105170.0,105160.0,0.18796]
[1749061266910,1.11932448,105170.0,105160.0,0.18796]
[1749061267135,1.10152401,105170.0,105160.0,0.18796]
[1749061267350,1.11042428,105170.0,105160.0,0.17146]
[1749061267572,1.09262373,105170.0,105160.0,0.17146]
[1749061267784,1.10152388,105170.0,105160.0,0.17146]
[1749061267997,1.11042393,105170.0,105160.0,0.17146]
[1749061268423,1.10152383,105170.0,105160.0,0.17146]
[1749061268881,1.09262373,105170.0,105160.0,0.17146]
[1749061269093,1.11932403,105170.0,105160.0,0.17146]
[1749061269308,1.09262373,105170.0,105160.0,0.17146]
[1749061269514,1.10152383,105170.0,105160.0,0.17146]
[1749061269718,1.09262373,105170.0,105160.0,0.17146]
[1749061269963,1.10152383,105170.0,105160.0,0.18776]
[1749061270172,1.09262373,105170.0,105160.0,0.18776]
[1749061270609,1.11932403,105170.0,105160.0,0.18776]
[1749061271015,1.09262373,105170.0,105160.0,0.22824]
[1749061271939,1.11932409,105170.0,105160.0,0.22824]
[1749061272146,1.09262373,105170.0,105160.0,0.22824]
[1749061272368,1.11042397,105170.0,105160.0,0.22824]
[1749061272795,1.11042401,105170.0,105160.0,0.22824]
[1749061272980,1.09262373,105170.0,105160.0,0.22824]
[1749061273189,1.11042405,105170.0,105160.0,0.21194]
[1749061273552,1.09262373,105170.0,105160.0,0.21194]
[1749061274584,1.09262373,105170.0,105160.0,0.19564]
[1749061275209,1.1015232,105170.0,105160.0,0.19564]
[1749061275571,1.09262373,105170.0,105160.0,0.19564]
[1749061275933,1.09262373,105170.0,105160.0,0.40084]
[1749061275934,1.11042267,105170.0,105160.0,0.40084]
[1749061276156,1.1104217,105170.0,105160.0,0.40084]
[1749061276323,1.09262373,105170.0,105160.0,0.40084]
[1749061276537,1.1193193,105170.0,105160.0,0.40084]
[1749061276704,1.10152222,105170.0,105160.0,0.40084]
[1749061276906,1.10152221,105170.0,105160.0,0.40064]
[1749061277108,1.09262373,105170.0,105160.0,0.40064]
[1749061277719,1.10152221,105170.0,105160.0,0.40064]
[1749061277915,1.11042069,105170.0,105160.0,0.40064]
[1749061278408,1.09262373,105170.0,105160.0,0.40064]
[1749061278612,1.23361888,105170.0,105160.0,0.24568]
[1749061278808,1.23361888,105170.0,105160.0,0.40064]
[1749061278951,1.24251721,105170.0,105160.0,0.40064]
[1749061279147,1.23361888,105170.0,105160.0,0.40064]
[1749061279581,1.24251717,105170.0,105160.0,0.40064]
[1749061279785,1.25141547,105170.0,105160.0,0.40064]
[1749061279989,1.23361888,105170.0,105160.0,0.40064]
[1749061280511,1.24251718,105170.0,105160.0,0.40064]
[1749061280716,1.23361888,105170.0,105160.0,0.40064]
[1749061280922,1.2603145,105170.0,105160.0,0.40064]
[1749061281130,1.23361888,105170.0,105160.0,0.40064]
[1749061281758,1.25141604,105170.0,105160.0,0.40064]
[1749061281964,1.24251746,105170.0,105160.0,0.40064]
[1749061282114,1.23361888,105170.0,105160.0,0.40064]
[1749061282322,1.24251746,105170.0,105160.0,0.40064]
[1749061282522,1.23361888,105170.0,105160.0,0.40064]
[1749061283262,1.26032054,105170.0,105160.0,0.40064]
[1749061283439,1.25142049,105170.0,105160.0,0.40064]
[1749061283642,1.24252006,105170.0,105160.0,0.40064]
[1749061283860,1.23361888,105170.0,105160.0,0.40064]
[1749061284640,1.24252005,105170.0,105160.0,0.40064]
[1749061284993,1.24302003,105170.0,105160.0,0.2052]
[1749061285222,1.24302003,105170.0,105160.0,0.40028]
[1749061285389,1.26082234,105170.0,105160.0,0.40028]
[1749061285609,1.23411888,105170.0,105160.0,0.40028]
[1749061286365,1.24302004,105170.0,105160.0,0.40028]
[1749061286969,1.21811888,105170.0,105160.0,0.40028]
[1749061287187,1.21192015,105170.0,105160.0,0.40028]
[1749061287401,1.20301888,105170.0,105160.0,0.40028]
[1749061287611,1.21192015,105170.0,105160.0,0.40028]
[1749061287797,1.20301888,105170.0,105160.0,0.40028]
[1749061288440,1.22082141,105170.0,105160.0,0.40028]
[1749061288676,1.22972267,105170.0,105160.0,0.40028]
[1749061288894,1.20301888,105170.0,105160.0,0.40028]
[1749061289107,1.22082141,105170.0,105160.0,0.40028]
[1749061289314,1.20301888,105170.0,105160.0,0.40028]
[1749061289513,1.22082145,105170.0,105160.0,0.40028]
[1749061290356,1.22972274,105170.0,105160.0,0.40028]
[1749061290611,1.22082145,105170.0,105160.0,0.40028]
[1749061290845,1.22972274,105170.0,105160.0,0.40028]
[1749061291088,1.22082145,105170.0,105160.0,0.40028]
[1749061292522,1.22972276,105170.0,105160.0,0.40028]
[1749061292789,1.22082145,105170.0,105160.0,0.40028]
[1749061293674,1.23862413,105170.0,105160.0,0.40028]
[1749061293898,1.22082145,105170.0,105160.0,0.40028]
[1749061295172,1.23862666,105170.0,105160.0,0.40028]
[1749061295349,1.23712145,105170.0,105160.0,0.40028]
[1749061295848,1.24602777,105170.0,105160.0,0.40028]
[1749061296077,1.23712145,105170.0,105160.0,0.40028]
[1749061296287,1.238634,105170.0,105160.0,0.40028]
[1749061296540,1.23863397,105170.0,105160.0,0.40028]
[1749061296767,1.22972771,105170.0,105160.0,0.40028]
[1749061297003,1.22082145,105170.0,105160.0,0.40028]
[1749061297205,1.23863397,105170.0,105160.0,0.40028]
[1749061297385,1.22082145,105170.0,105160.0,0.40028]
[1749061297965,1.23863397,105170.0,105160.0,0.40028]
[1749061298377,1.22082145,105170.0,105160.0,0.40028]
[1749061298588,1.22972771,105170.0,105160.0,0.40028]
[1749061298749,1.24754023,105170.0,105160.0,0.40028]
[1749061298949,1.23863397,105170.0,105160.0,0.40028]
[1749061299152,1.22082145,105170.0,105160.0,0.40028]
[1749061300499,1.22972771,105170.0,105160.0,0.40028]
[1749061301114,1.22082145,105170.0,105160.0,0.40028]
[1749061301516,1.22972771,105170.0,105160.0,0.40028]
[1749061301751,1.22082145,105170.0,105160.0,0.40028]
[1749061302577,1.23863386,105170.0,105160.0,0.40028]
[1749061302774,1.22082145,105170.0,105160.0,0.40028]
[1749061304009,1.22972765,105170.0,105160.0,0.40028]
[1749061304269,1.22082145,105170.0,105160.0,0.40028]
[1749061305098,1.22972765,105170.0,105160.0,0.40028]
[1749061305308,1.22082145,105170.0,105160.0,0.40028]
[1749061305896,1.22972765,105170.0,105160.0,0.40028]
[1749061306297,1.22082145,105170.0,105160.0,0.40028]
[1749061306461,1.22972765,105170.0,105160.0,0.40028]
[1749061306687,1.24754006,105170.0,105160.0,0.40028]
[1749061306893,1.23863386,105170.0,105160.0,0.40028]
[1749061307188,1.25483386,105170.0,105160.0,0.40028]
[1749061307627,0.05052118,105170.0,105160.0,0.43188]
[1749061307839,0.05942573,105170.0,105160.0,0.50782096]
[1749061308024,0.04161498,105170.0,105160.0,0.51920898]
[1749061308440,0.05052008,105170.0,105160.0,0.51920898]
[1749061308646,0.04161498,105170.0,105160.0,0.51920898]
[1749061310518,0.04161498,105170.0,105160.0,0.53083138]
[1749061310931,0.05051991,105170.0,105160.0,0.53083138]
[1749061311135,0.04161498,105170.0,105160.0,0.53083138]
[1749061311345,0.04161498,105170.0,105160.0,0.53081158]
[1749061312142,0.05051991,105170.0,105160.0,0.53081158]
[1749061312554,0.04161498,105170.0,105160.0,0.53081158]
[1749061312785,0.05051991,105170.0,105160.0,0.53081158]
[1749061313024,0.04161498,105170.0,105160.0,0.53081158]
[1749061313656,0.04161498,105170.0,105160.0,0.51944336]
[1749061314071,0.05051991,105170.0,105160.0,0.51944336]
[1749061314302,0.04161498,105170.0,105160.0,0.51944336]
[1749061314940,0.05051991,105170.0,105160.0,0.51944336]
[1749061315158,0.04161498,105170.0,105160.0,0.51944336]
[1749061317616,0.05051991,105170.0,105160.0,0.51944336]
[1749061317841,0.04161498,105170.0,105160.0,0.51944336]
[1749061318489,0.05051991,105170.0,105160.0,0.51944336]
[1749061318714,0.79714364,105170.0,105160.0,0.2368]
[1749061318930,0.81495425,105170.0,105160.0,0.40024]
[1749061319140,0.78823871,105170.0,105160.0,0.40024]
[1749061319372,0.81495437,105170.0,105160.0,0.40024]
[1749061319574,0.80604916,105170.0,105160.0,0.40024]
[1749061319786,0.78823871,105170.0,105160.0,0.40024]
[1749061320217,0.80604916,105170.0,105160.0,0.2052]
[1749061320414,0.78823871,105170.0,105160.0,0.40024]
[1749061320828,1.23823871,105170.0,105160.0,0.40024]
[1749061321250,1.26495438,105170.0,105160.0,0.40024]
[1749061321462,1.23823871,105170.0,105160.0,0.40024]
[1749061321672,1.27154916,105170.0,105160.0,0.40024]
[1749061321907,1.26903871,105170.0,105160.0,0.40024]
[1749061322118,1.25373871,105170.0,105160.0,0.40024]
[1749061322534,1.26264438,105170.0,105160.0,0.40024]
[1749061322958,1.25373871,105170.0,105160.0,0.40024]
[1749061323894,1.26264438,105170.0,105160.0,0.40024]
[1749061324123,1.23823871,105170.0,105160.0,0.40024]
[1749061325064,1.24714438,105170.0,105160.0,0.40024]
[1749061325295,1.23823871,105170.0,105160.0,0.40024]
[1749061325750,1.24714438,105170.0,105160.0,0.40024]
[1749061325964,1.23823871,105170.0,105160.0,0.24532]
[1749061326182,1.23823871,105170.0,105160.0,0.40024]
[1749061326593,1.24714438,105170.0,105160.0,0.40024]
[1749061326824,1.23823871,105170.0,105160.0,0.40024]
[1749061327204,1.24714438,105170.0,105160.0,0.40024]
[1749061327407,1.23823871,105170.0,105160.0,0.40024]
[1749061327811,1.24714438,105170.0,105160.0,0.40024]
[1749061327989,1.23823871,105170.0,105160.0,0.40024]
[1749061328571,1.24714438,105170.0,105160.0,0.40024]
[1749061328782,1.23823871,105170.0,105160.0,0.24532]
[1749061329008,1.23823871,105170.0,105160.0,0.40024]
[1749061329222,1.24714438,105170.0,105160.0,0.40024]
[1749061329682,1.23823871,105170.0,105160.0,0.40024]
[1749061331581,1.26284438,105170.0,105160.0,0.40024]
[1749061331798,1.25393871,105170.0,105160.0,0.24532]
[1749061332058,1.25393871,105170.0,105160.0,0.40024]
[1749061332304,1.26963871,105170.0,105160.0,0.40024]
[1749061333749,1.27854438,105170.0,105160.0,0.40024]
[1749061334215,1.26963871,105170.0,105160.0,0.40024]
[1749061335324,1.27854437,105170.0,105160.0,0.40024]
[1749061335548,1.26963871,105170.0,105160.0,0.40024]
[1749061335984,1.27854437,105170.0,105160.0,0.40024]
[1749061336219,1.26963871,105170.0,105160.0,0.40024]
[1749061336901,1.26284437,105170.0,105160.0,0.40024]
[1749061337150,1.25393871,105170.0,105160.0,0.40024]
[1749061339145,1.36599301,105170.0,105160.0,0.2052]
[1749061339355,1.36599301,105170.0,105160.0,0.24532]
[1749061339356,1.38053386,105170.0,105160.0,0.24532]
[1749061339581,1.38053386,105170.0,105160.0,0.40024]
[1749061340239,1.38943999,105170.0,105160.0,0.40024]
[1749061340437,1.38053386,105170.0,105160.0,0.40024]
[1749061340667,1.72944009,105170.0,105160.0,0.24532]
[1749061340908,1.72944031,105170.0,105160.0,0.40024]
[1749061341098,1.72053386,105170.0,105160.0,0.40024]
[1749061341310,1.68863386,105170.0,105160.0,0.40024]
[1749061341525,0.58746928,105170.0,105160.0,0.2052]
[1749061341731,0.58746928,105170.0,105160.0,0.43264]
[1749061342189,0.49161498,105170.0,105160.0,0.43264]
[1749061342398,0.49161498,105170.0,105160.0,0.50858096]
[1749061342610,0.49161498,105170.0,105160.0,0.51995938]
[1749061343033,0.49161498,105170.0,105160.0,1.60658311]
[1749061343258,0.49161498,105170.0,105160.0,1.61038924]
[1749061343708,0.48861498,105170.0,105160.0,1.61038924]
[1749061343936,0.48861498,105170.0,105160.0,1.69105899]
[1749061343937,0.48561498,105170.0,105160.0,1.69105899]
[1749061344645,0.48561498,105170.0,105160.0,2.03105899]
[1749061344908,0.48561498,105170.0,105160.0,1.86450787]
[1749061345129,0.48561498,105170.0,105160.0,0.78951526]
[1749061345384,0.48561498,105170.0,105160.0,1.70620097]
[1749061346100,0.48561498,105170.0,105160.0,1.70820097]
[1749061346777,0.48561498,105170.0,105160.0,1.71120097]
[1749061348768,0.48561498,105170.0,105160.0,1.72255004]
[1749061349380,0.48561498,105170.0,105160.0,1.72254895]
[1749061350421,0.48561498,105170.0,105160.0,0.97592522]
[1749061350625,0.48561498,105170.0,105160.0,1.72254895]
[1749061350852,0.48561498,105170.0,105160.0,0.64920996]
[1749061351051,0.48561498,105170.0,105160.0,0.48894798]
[1749061351457,0.48561498,105170.0,105160.0,0.47672441]
[1749061352513,0.48561498,105170.0,105160.0,0.21016]
[1749061352727,1.25872339,105170.0,105160.0,0.21016]
[1749061352951,1.25872339,105170.0,105160.0,0.40516]
[1749061352952,1.27402339,105170.0,105160.0,0.40516]
[1749061353392,1.27402339,105170.0,105160.0,0.40016]
[1749061353620,1.2829044,105170.0,105160.0,0.40016]
[1749061353840,1.70987769,105170.0,105160.0,0.24528]
[1749061354057,1.70987769,105170.0,105160.0,0.40116]
[1749061354280,1.71875926,105170.0,105160.0,0.24628]
[1749061354503,1.71875926,105170.0,105160.0,0.40116]
[1749061354504,1.72441854,105170.0,105160.0,0.40116]
[1749061354715,1.72441854,105170.0,105160.0,0.40316]
[1749061355397,1.73330037,105170.0,105160.0,0.24728]
[1749061355621,1.72641854,105170.0,105160.0,0.20516]
[1749061355839,1.73530038,105170.0,105160.0,0.40016]
[1749061356076,1.71141854,105170.0,105160.0,0.40016]
[1749061356545,1.72030037,105170.0,105160.0,0.40016]
[1749061356758,1.71141854,105170.0,105160.0,0.40016]
[1749061359429,1.72030037,105170.0,105160.0,0.40016]
[1749061359635,1.71141854,105170.0,105160.0,0.40016]
[1749061359830,1.72030037,105170.0,105160.0,0.40016]
[1749061363241,1.70230037,105170.0,105160.0,0.40016]
[1749061364928,1.70230037,105170.0,105160.0,0.20516]
[1749061365144,1.70230037,105170.0,105160.0,0.4002]
[1749061365369,1.70230037,105170.0,105160.0,0.24528]
[1749061365569,1.70230037,105170.0,105160.0,0.4002]
[1749061366170,1.70230037,105170.0,105160.0,0.24528]
[1749061366588,1.70230037,105170.0,105160.0,0.4002]
[1749061366980,1.71230037,105170.0,105160.0,0.24528]
[1749061367185,1.77799585,105170.0,105160.0,0.4002]
[1749061367406,1.77699585,105170.0,105160.0,0.24528]
[1749061367669,1.77699585,105170.0,105160.0,0.4002]
[1749061367852,1.77999585,105170.0,105160.0,0.4002]
[1749061368546,1.87050707,105170.0,105160.0,0.4002]
[1749061368751,1.87250707,105170.0,105160.0,0.4002]
[1749061369601,2.6191308,105170.0,105160.0,0.4002]
[1749061370016,0.04634085,105150.0,105140.0,0.07594096]
[1749061370272,1.97544261,105150.0,105140.0,0.11602096]
[1749061370697,1.93544261,105150.0,105140.0,0.11602096]
[1749061371120,1.93544261,105150.0,105140.0,0.27094096]
[1749061371326,1.93544261,105150.0,105140.0,0.27194096]
[1749061372430,1.93544261,105150.0,105140.0,0.27094096]
[1749061372634,1.94998346,105150.0,105140.0,0.27094096]
[1749061373669,1.94998346,105150.0,105140.0,0.07594096]
[1749061373937,1.94998346,105150.0,105140.0,0.04008]
[1749061373938,1.97628346,105150.0,105140.0,0.04008]
[1749061374120,2.00481846,105150.0,105140.0,0.195]
[1749061374534,2.00481846,105150.0,105140.0,0.04008]